fUST/lending_fUST_20240626
["ID","MTS","AMOUNT","RATE_DAILY","PERIOD"]
[330443276,1719415845236,-151.0,0.00016401,2]
[330443278,1719415845246,-151.0,0.00016401,2]
[330443280,1719415845255,-373.78265909,0.00016403,2]
[330443282,1719415845265,-151.0,0.00016404,2]
[330443284,1719415845275,-226.4192049,0.00016429,2]
[330443286,1719415845285,-42990.78231301,0.0001643,2]
[330443288,1719415845295,-5000.0,0.0001643,2]
[330443290,1719415845306,-205.48375659,0.00016435,2]
[330443292,1719415845315,-284.64664354,0.00016436,2]
[330443293,1719415845324,-3924.67012836,0.00016436,2]
[330443295,1719415845335,-151.0,0.00016436,2]
[330443297,1719415845345,-151.0,0.00016436,2]
[330443299,1719415845355,-151.0,0.00016436,2]
[330443301,1719415845366,-151.0,0.00016436,2]
[330443303,1719415845376,-568.366764,0.00016436,2]
[330443305,1719415845388,-568.366764,0.00016436,2]
[330443307,1719415845399,-568.366764,0.00016436,2]
[330443309,1719415845410,-568.366764,0.00016436,2]
[330443311,1719415845424,-151.0,0.00016436,2]
[330443312,1719415845438,-195.460638,0.00016436,2]
[330443314,1719415845449,-420.157192,0.00016436,2]
[330443316,1719415845460,-420.157192,0.00016436,2]
[330443318,1719415845470,-151.0,0.00016436,2]
[330443320,1719415845482,-151.0,0.00016436,2]
[330443322,1719415845495,-250.978685,0.00016436,2]
[330443324,1719415845508,-151.0,0.00016436,2]
[330443326,1719415845520,-2476.213923,0.00016436,2]
[330443328,1719415845531,-2476.213923,0.00016436,2]
[330443330,1719415845545,-151.0,0.00016436,2]
[330443332,1719415845557,-160.623921,0.00016436,2]
[330443334,1719415845570,-160.623921,0.00016436,2]
[330443336,1719415845583,-151.0,0.00016436,2]
[330443338,1719415845595,-152.836137,0.00016436,2]
[330443340,1719415845606,-160.055685,0.00016436,2]
[330443342,1719415845617,-160.055685,0.00016436,2]
[330443344,1719415845628,-211.267735,0.00016436,2]
[330443346,1719415845640,-211.267735,0.00016436,2]
[330443348,1719415845652,-951.848687,0.00016436,2]
[330443350,1719415845663,-951.848687,0.00016436,2]
[330443352,1719415845681,-221.837987,0.00016436,2]
[330443354,1719415845692,-221.837987,0.00016436,2]
[330443356,1719415845702,-274.36678504,0.00016437,2]
[330443358,1719415845713,-46385.0073419,0.00016438,2]
[330443360,1719415845724,-500.0,0.00016438,2]
[330443362,1719415845738,-500.0,0.00016438,2]
[330443363,1719415845749,-500.0,0.00016438,2]
[330443365,1719415845760,-500.0,0.00016438,2]
[330443367,1719415845772,-500.0,0.00016438,2]
[330443369,1719415845783,-502.16128469,0.00016438,2]
[330443371,1719415845796,-320.77866887,0.00016438,2]
[330443373,1719415845807,-506.84652496,0.00016438,2]
[330443375,1719415845818,-500.0,0.00016438,2]
[330443377,1719415845834,-500.0,0.00016438,2]
[330443379,1719415845852,-614.13275902,0.00016438,2]
[330443381,1719415845864,-505.94518152,0.00016438,2]
[330443382,1719415845874,-500.0,0.00016438,2]
[330443383,1719415845885,-502.1411428,0.00016438,2]
[330443384,1719415845895,-500.0,0.00016438,2]
[330443385,1719415845905,-500.0,0.00016438,2]
[330443386,1719415845916,-500.0,0.00016438,2]
[330443387,1719415845932,-500.0,0.00016438,2]
[330443388,1719415845943,-504.6622117,0.00016438,2]
[330443389,1719415845954,-500.0,0.00016438,2]
[330443390,1719415845966,-417.38899421,0.00016438,2]
[330443391,1719415845980,-500.0,0.00016438,2]
[330443392,1719415845991,-500.76774773,0.00016438,2]
[330443393,1719415846002,-502.32640239,0.00016438,2]
[330443394,1719415846013,-500.0,0.00016438,2]
[330443395,1719415846024,-500.0,0.00016438,2]
[330443396,1719415846034,-500.0,0.00016438,2]
[330443397,1719415846044,-500.0,0.00016438,2]
[330443398,1719415846055,-500.0,0.00016438,2]
[330443399,1719415846068,-500.0,0.00016438,2]
[330443400,1719415846079,-500.0,0.00016438,2]
[330443401,1719415846089,-500.0,0.00016438,2]
[330443402,1719415846100,-503.53003281,0.00016438,2]
[330443403,1719415846110,-500.0,0.00016438,2]
[330443404,1719415846120,-500.0,0.00016438,2]
[330443406,1719415846130,-405.36409781,0.00016438,2]
[330443407,1719415846140,-544.21163108,0.00016438,2]
[330443409,1719415846150,-501.8348519,0.00016438,2]
[330443411,1719415846160,-500.0,0.00016438,2]
[330443413,1719415846169,-500.0,0.00016438,2]
[330443415,1719415846185,-500.0,0.00016438,2]
[330443417,1719415846194,-567.34796412,0.00016438,2]
[330443419,1719415846203,-500.0,0.00016438,2]
[330443421,1719415846213,-515.54417814,0.00016438,2]
[330443423,1719415846223,-502.5943085,0.00016438,2]
[330443425,1719415846232,-502.6813929,0.00016438,2]
[330443427,1719415846241,-500.0,0.00016438,2]
[330443429,1719415846250,-500.0,0.00016438,2]
[330443431,1719415846260,-501.31496224,0.00016438,2]
[330443433,1719415846269,-500.0,0.00016438,2]
[330443435,1719415846279,-500.0,0.00016438,2]
[330443437,1719415846289,-500.0,0.00016438,2]
[330443439,1719415846298,-500.0,0.00016438,2]
[330443441,1719415846307,-500.0,0.00016438,2]
[330443443,1719415846317,-506.41718377,0.00016438,2]
[330443445,1719415846325,-504.0026172,0.00016438,2]
[330443447,1719415846335,-504.19624208,0.00016438,2]
[330443449,1719415846343,-500.0,0.00016438,2]
[330443462,1719415846471,-500.0,0.00016438,2]
[330443464,1719415846482,-539.86107676,0.00016438,2]
[330443466,1719415846492,-500.0,0.00016438,2]
[330443468,1719415846501,-500.0,0.00016438,2]
[330443470,1719415846510,-511.74884361,0.00016438,2]
[330443472,1719415846520,-507.47504507,0.00016438,2]
[330443474,1719415846529,-503.22908055,0.00016438,2]
[330443476,1719415846538,-513.55891959,0.00016438,2]
[330443478,1719415846548,-500.0,0.00016438,2]
[330443480,1719415846557,-2885.72,0.00016438,2]
[330443482,1719415846567,-618.24162495,0.00016438,2]
[330443484,1719415846576,-500.0,0.00016438,2]
[330443486,1719415846585,-529.30072957,0.00016438,2]
[330443488,1719415846594,-500.0,0.00016438,2]
[330443491,1719415846603,-528.33980179,0.00016438,2]
[330443493,1719415846612,-502.4714608,0.00016438,2]
[330443495,1719415846622,-500.0,0.00016438,2]
[330443497,1719415846631,-500.0,0.00016438,2]
[330443499,1719415846640,-506.40779244,0.00016438,2]
[330443501,1719415846650,-500.0,0.00016438,2]
[330443503,1719415846659,-504.21709346,0.00016438,2]
[330443505,1719415846668,-500.0,0.00016438,2]
[330443507,1719415846681,-500.0,0.00016438,2]
[330443508,1719415846690,-500.0,0.00016438,2]
[330443511,1719415846700,-501.43151754,0.00016438,2]
[330443512,1719415846709,-501.17727236,0.00016438,2]
[330443514,1719415846719,-501.27923977,0.00016438,2]
[330443516,1719415846729,-500.0,0.00016438,2]
[330443518,1719415846739,-500.0,0.00016438,2]
[330443520,1719415846748,-519.72006347,0.00016438,2]
[330443522,1719415846757,-500.0,0.00016438,2]
[330443524,1719415846767,-500.0,0.00016438,2]
[330443526,1719415846776,-500.0,0.00016438,2]
[330443528,1719415846786,-500.0,0.00016438,2]
[330443531,1719415846795,-500.0,0.00016438,2]
[330443532,1719415846805,-504.7917541,0.00016438,2]
[330443534,1719415846815,-500.0,0.00016438,2]
[330443536,1719415846825,-500.0,0.00016438,2]
[330443539,1719415846834,-500.0,0.00016438,2]
[330443540,1719415846843,-500.0,0.00016438,2]
[330443542,1719415846852,-502.15553967,0.00016438,2]
[330443544,1719415846861,-500.0,0.00016438,2]
[330443546,1719415846871,-508.62193738,0.00016438,2]
[330443548,1719415846881,-515.34093018,0.00016438,2]
[330443550,1719415846890,-502.27271725,0.00016438,2]
[330443552,1719415846899,-500.0,0.00016438,2]
[330443554,1719415846908,-500.0,0.00016438,2]
[330443556,1719415846918,-500.0,0.00016438,2]
[330443558,1719415846930,-500.00026116,0.00016438,2]
[330443560,1719415846939,-502.88589305,0.00016438,2]
[330443562,1719415846948,-500.0,0.00016438,2]
[330443564,1719415846957,-500.0,0.00016438,2]
[330443566,1719415846968,-500.0,0.00016438,2]
[330443568,1719415846979,-151.0,0.00016438,2]
[330443570,1719415846989,-151.0,0.00016438,2]
[330443572,1719415846998,-502.40244211,0.00016438,2]
[330443574,1719415847007,-151.0,0.00016438,2]
[330443576,1719415847018,-151.0,0.00016438,2]
[330443578,1719415847027,-500.72044208,0.00016438,2]
[330443580,1719415847037,-151.0,0.00016438,2]
[330443582,1719415847046,-151.0,0.00016438,2]
[330443584,1719415847057,-263.331674,0.00016438,2]
[330443586,1719415847067,-316.14687754,0.00016438,2]
[330443588,1719415847077,-500.0,0.00016438,2]
[330443590,1719415847086,-502.98822404,0.00016438,2]
[330443592,1719415847095,-500.0,0.00016438,2]
[330443594,1719415847105,-502.50343943,0.00016438,2]
[330443596,1719415847114,-500.0,0.00016438,2]
[330443598,1719415847124,-500.0,0.00016438,2]
[330443600,1719415847133,-500.0,0.00016438,2]
[330443602,1719415847142,-500.0,0.00016438,2]
[330443604,1719415847151,-502.01806864,0.00016438,2]
[330443606,1719415847160,-500.0,0.00016438,2]
[330443608,1719415847173,-500.0,0.00016438,2]
[330443610,1719415847182,-506.60809644,0.00016438,2]
[330443612,1719415847191,-500.0,0.00016438,2]
[330443614,1719415847200,-502.23344955,0.00016438,2]
[330443616,1719415847209,-501.85173717,0.00016438,2]
[330443618,1719415847219,-501.33491462,0.00016438,2]
[330443620,1719415847227,-288.06951017,0.00016438,2]
[330443622,1719415847237,-502.01229906,0.00016438,2]
[330443624,1719415847246,-500.0,0.00016438,2]
[330443626,1719415847255,-500.0,0.00016438,2]
[330443628,1719415847265,-500.0,0.00016438,2]
[330443630,1719415847274,-500.0,0.00016438,2]
[330443631,1719415847283,-276.35586002,0.00016438,2]
[330443633,1719415847292,-500.0,0.00016438,2]
[330443635,1719415847302,-502.40444539,0.00016438,2]
[330443637,1719415847311,-500.0,0.00016438,2]
[330443639,1719415847320,-500.0,0.00016438,2]
[330443641,1719415847329,-507.39721714,0.00016438,2]
[330443643,1719415847338,-500.65312516,0.00016438,2]
[330443646,1719415847348,-503.38925537,0.00016438,2]
[330443647,1719415847358,-943.88,0.00016438,2]
[330443649,1719415847367,-500.0,0.00016438,2]
[330443651,1719415847377,-500.0,0.00016438,2]
[330443653,1719415847386,-500.0,0.00016438,2]
[330443655,1719415847395,-500.0,0.00016438,2]
[330443658,1719415847405,-500.0,0.00016438,2]
[330443659,1719415847414,-506.4038674,0.00016438,2]
[330443661,1719415847425,-501.32424417,0.00016438,2]
[330443663,1719415847435,-500.0,0.00016438,2]
[330443665,1719415847443,-500.0,0.00016438,2]
[330443667,1719415847453,-503.58491508,0.00016438,2]
[330443669,1719415847462,-500.0,0.00016438,2]
[330443672,1719415847472,-501.50937845,0.00016438,2]
[330443673,1719415847481,-500.0,0.00016438,2]
[330443676,1719415847491,-502.80168634,0.00016438,2]
[330443678,1719415847500,-500.0,0.00016438,2]
[330443680,1719415847510,-500.0,0.00016438,2]
[330443682,1719415847519,-582.82,0.00016438,2]
[330443684,1719415847528,-507.88099939,0.00016438,2]
[330443685,1719415847538,-501.65784496,0.00016438,2]
[330443687,1719415847547,-664.21,0.00016438,2]
[330443689,1719415847556,-500.0,0.00016438,2]
[330443692,1719415847566,-500.0,0.00016438,2]
[330443693,1719415847575,-502.56230673,0.00016438,2]
[330443695,1719415847585,-636.56423277,0.00016438,2]
[330443698,1719415847595,-501.38607918,0.00016438,2]
[330443700,1719415847604,-501.27579173,0.00016438,2]
[330443701,1719415847613,-500.0,0.00016438,2]
[330443703,1719415847622,-565.60154372,0.00016438,2]
[330443705,1719415847631,-174.461929,0.00016438,2]
[330443707,1719415847641,-500.0,0.00016438,2]
[330443709,1719415847650,-500.0,0.00016438,2]
[330443711,1719415847659,-500.0,0.00016438,2]
[330443713,1719415847669,-500.0,0.00016438,2]
[330443715,1719415847679,-500.0,0.00016438,2]
[330443717,1719415847688,-500.0,0.00016438,2]
[330443719,1719415847697,-500.0,0.00016438,2]
[330443721,1719415847707,-151.0,0.00016438,2]
[330443723,1719415847716,-151.0,0.00016438,2]
[330443725,1719415847725,-151.0,0.00016438,2]
[330443727,1719415847736,-151.0,0.00016438,2]
[330443729,1719415847745,-151.0,0.00016438,2]
[330443731,1719415847754,-151.0,0.00016438,2]
[330443733,1719415847763,-151.0,0.00016438,2]
[330443735,1719415847773,-151.0,0.00016438,2]
[330443737,1719415847782,-500.0,0.00016438,2]
[330443739,1719415847791,-151.0,0.00016438,2]
[330443741,1719415847800,-151.0,0.00016438,2]
[330443743,1719415847810,-151.0,0.00016438,2]
[330443745,1719415847819,-151.0,0.00016438,2]
[330443747,1719415847829,-181.509734,0.00016438,2]
[330443749,1719415847838,-509.68272779,0.00016438,2]
[330443751,1719415847847,-500.0,0.00016438,2]
[330443753,1719415847858,-512.7,0.00016438,2]
[330443755,1719415847867,-503.95167099,0.00016438,2]
[330443757,1719415847878,-500.0,0.00016438,2]
[330443759,1719415847888,-500.0,0.00016438,2]
[330443761,1719415847898,-500.0,0.00016438,2]
[330443763,1719415847907,-500.0,0.00016438,2]
[330443765,1719415847916,-500.0,0.00016438,2]
[330443767,1719415847927,-500.0,0.00016438,2]
[330443768,1719415847935,-500.0,0.00016438,2]
[330443770,1719415847944,-502.38727658,0.00016438,2]
[330443772,1719415847953,-504.6826085,0.00016438,2]
[330443774,1719415847962,-512.76033696,0.00016438,2]
[330443776,1719415847975,-500.0,0.00016438,2]
[330443778,1719415847984,-501.88078274,0.00016438,2]
[330443780,1719415847993,-500.0,0.00016438,2]
[330443782,1719415848003,-500.0,0.00016438,2]
[330443784,1719415848013,-500.0,0.00016438,2]
[330443786,1719415848022,-500.0,0.00016438,2]
[330443789,1719415848032,-500.0,0.00016438,2]
[330443790,1719415848041,-503.03791609,0.00016438,2]
[330443792,1719415848050,-514.83072224,0.00016438,2]
[330443794,1719415848061,-500.0,0.00016438,2]
[330443796,1719415848073,-500.0,0.00016438,2]
[330443798,1719415848082,-500.0,0.00016438,2]
[330443800,1719415848092,-500.0,0.00016438,2]
[330443802,1719415848102,-500.0,0.00016438,2]
[330443805,1719415848111,-500.0,0.00016438,2]
[330443806,1719415848120,-500.0,0.00016438,2]
[330443808,1719415848129,-500.0,0.00016438,2]
[330443810,1719415848139,-500.0,0.00016438,2]
[330443812,1719415848148,-505.32678913,0.00016438,2]
[330443814,1719415848158,-500.0,0.00016438,2]
[330443816,1719415848166,-500.0,0.00016438,2]
[330443818,1719415848178,-626.72,0.00016438,2]
[330443820,1719415848187,-500.0,0.00016438,2]
[330443822,1719415848196,-4468.56,0.00016438,2]
[330443824,1719415848205,-4468.56,0.00016438,2]
[330443826,1719415848214,-504.79982124,0.00016438,2]
[330443828,1719415848223,-508.78086006,0.00016438,2]
[330443830,1719415848232,-500.0,0.00016438,2]
[330443832,1719415848241,-500.0,0.00016438,2]
[330443834,1719415848250,-500.0,0.00016438,2]
[330443836,1719415848260,-500.0,0.00016438,2]
[330443838,1719415848269,-501.55239601,0.00016438,2]
[330443840,1719415848278,-500.0,0.00016438,2]
[330443842,1719415848287,-500.0,0.00016438,2]
[330443844,1719415848296,-500.27130574,0.00016438,2]
[330443846,1719415848305,-500.0,0.00016438,2]
[330443848,1719415848314,-500.0,0.00016438,2]
[330443850,1719415848323,-500.0,0.00016438,2]
[330443852,1719415848333,-503.68853389,0.00016438,2]
[330443854,1719415848343,-500.0,0.00016438,2]
[330443856,1719415848352,-500.0,0.00016438,2]
[330443858,1719415848362,-500.0,0.00016438,2]
[330443860,1719415848371,-500.0,0.00016438,2]
[330443862,1719415848380,-500.0,0.00016438,2]
[330443864,1719415848390,-500.0,0.00016438,2]
[330443866,1719415848399,-500.0,0.00016438,2]
[330443868,1719415848408,-500.0,0.00016438,2]
[330443870,1719415848417,-500.0,0.00016438,2]
[330443871,1719415848429,-500.0,0.00016438,2]
[330443874,1719415848438,-501.79894931,0.00016438,2]
[330443876,1719415848447,-500.6856979,0.00016438,2]
[330443878,1719415848456,-503.81341717,0.00016438,2]
[330443879,1719415848466,-681.34,0.00016438,2]
[330443881,1719415848475,-681.34,0.00016438,2]
[330443883,1719415848484,-500.0,0.00016438,2]
[330443885,1719415848494,-500.0,0.00016438,2]
[330443887,1719415848503,-500.0,0.00016438,2]
[330443889,1719415848512,-500.0,0.00016438,2]
[330443890,1719415848522,-500.0,0.00016438,2]
[330443891,1719415848531,-500.0,0.00016438,2]
[330443892,1719415848540,-500.0,0.00016438,2]
[330443893,1719415848550,-500.0,0.00016438,2]
[330443894,1719415848560,-500.0,0.00016438,2]
[330443895,1719415848570,-500.0,0.00016438,2]
[330443896,1719415848579,-500.0,0.00016438,2]
[330443897,1719415848589,-550.73,0.00016438,2]
[330443898,1719415848599,-500.0,0.00016438,2]
[330443900,1719415848608,-500.0,0.00016438,2]
[330443902,1719415848617,-501.38785458,0.00016438,2]
[330443904,1719415848627,-500.0,0.00016438,2]
[330443906,1719415848636,-500.0,0.00016438,2]
[330443908,1719415848645,-500.0,0.00016438,2]
[330443910,1719415848654,-500.0,0.00016438,2]
[330443912,1719415848663,-501.62038775,0.00016438,2]
[330443914,1719415848674,-500.0,0.00016438,2]
[330443916,1719415848683,-500.0,0.00016438,2]
[330443918,1719415848692,-500.0,0.00016438,2]
[330443920,1719415848701,-500.0,0.00016438,2]
[330443922,1719415848710,-500.0,0.00016438,2]
[330443924,1719415848719,-504.20780408,0.00016438,2]
[330443926,1719415848729,-502.85425487,0.00016438,2]
[330443928,1719415848738,-500.0,0.00016438,2]
[330443930,1719415848747,-500.0,0.00016438,2]
[330443932,1719415848757,-518.55605585,0.00016438,2]
[330443934,1719415848767,-500.0,0.00016438,2]
[330443936,1719415848776,-500.0,0.00016438,2]
[330443938,1719415848784,-500.0,0.00016438,2]
[330443940,1719415848793,-500.0,0.00016438,2]
[330443942,1719415848802,-508.31978411,0.00016438,2]
[330443944,1719415848811,-500.0,0.00016438,2]
[330443946,1719415848820,-504.31827981,0.00016438,2]
[330443948,1719415848830,-500.0,0.00016438,2]
[330443950,1719415848839,-500.0,0.00016438,2]
[330443952,1719415848848,-500.0,0.00016438,2]
[330443954,1719415848857,-500.0,0.00016438,2]
[330443956,1719415848867,-500.0,0.00016438,2]
[330443958,1719415848877,-500.0,0.00016438,2]
[330443960,1719415848887,-500.0,0.00016438,2]
[330443962,1719415848896,-501.62844923,0.00016438,2]
[330443964,1719415848906,-508.10323253,0.00016438,2]
[330443966,1719415848915,-500.0,0.00016438,2]
[330443968,1719415848926,-500.0,0.00016438,2]
[330443970,1719415848935,-500.0,0.00016438,2]
[330443972,1719415848945,-500.0,0.00016438,2]
[330443974,1719415848954,-500.0,0.00016438,2]
[330443975,1719415848968,-549.19800987,0.00016438,2]
[330443977,1719415848980,-568.366764,0.00016438,2]
[330443979,1719415848996,-568.366764,0.00016438,2]
[330443982,1719415849006,-568.366764,0.00016438,2]
[330443983,1719415849015,-500.0,0.00016438,2]
[330443986,1719415849027,-568.366764,0.00016438,2]
[330443987,1719415849036,-550.98240206,0.00016438,2]
[330443990,1719415849045,-500.0,0.00016438,2]
[330443991,1719415849055,-568.366764,0.00016438,2]
[330443994,1719415849066,-568.366764,0.00016438,2]
[330443996,1719415849076,-568.366764,0.00016438,2]
[330444009,1719415849085,-568.366764,0.00016438,2]
[330444011,1719415849204,-500.0,0.00016438,2]
[330444013,1719415849214,-500.0,0.00016438,2]
[330444015,1719415849223,-568.366764,0.00016438,2]
[330444017,1719415849232,-568.366764,0.00016438,2]
[330444019,1719415849242,-568.366764,0.00016438,2]
[330444021,1719415849251,-500.0,0.00016438,2]
[330444023,1719415849260,-500.0,0.00016438,2]
[330444025,1719415849268,-568.366764,0.00016438,2]
[330444027,1719415849278,-500.0,0.00016438,2]
[330444029,1719415849287,-568.366764,0.00016438,2]
[330444031,1719415849296,-568.366764,0.00016438,2]
[330444033,1719415849306,-568.366764,0.00016438,2]
[330444035,1719415849315,-568.366761,0.00016438,2]
[330444037,1719415849324,-500.0,0.00016438,2]
[330444039,1719415849333,-500.0,0.00016438,2]
[330444041,1719415849343,-500.0,0.00016438,2]
[330444043,1719415849352,-500.0,0.00016438,2]
[330444045,1719415849361,-502.37114823,0.00016438,2]
[330444047,1719415849371,-500.0,0.00016438,2]
[330444049,1719415849380,-500.0,0.00016438,2]
[330444051,1719415849389,-500.0,0.00016438,2]
[330444053,1719415849399,-174.80666479,0.00016438,2]
[330444054,1719415849408,-500.5814731,0.00016438,2]
[330444057,1719415849418,-500.0,0.00016438,2]
[330444059,1719415849433,-500.0,0.00016438,2]
[330444061,1719415849442,-1114.43,0.00016438,2]
[330444062,1719415849451,-500.0,0.00016438,2]
[330444064,1719415849460,-500.0,0.00016438,2]
[330444066,1719415849471,-502.69421746,0.00016438,2]
[330444069,1719415849480,-499.95053693,0.00016438,2]
[330444071,1719415849490,-500.0,0.00016438,2]
[330444073,1719415849500,-500.0,0.00016438,2]
[330444075,1719415849509,-500.0,0.00016438,2]
[330444077,1719415849518,-422.06323402,0.00016438,2]
[330444079,1719415849527,-500.0,0.00016438,2]
[330444081,1719415849537,-500.0,0.00016438,2]
[330444083,1719415849546,-500.0,0.00016438,2]
[330444085,1719415849555,-502.36938004,0.00016438,2]
[330444087,1719415849564,-544.56474569,0.00016438,2]
[330444088,1719415849573,-506.62781122,0.00016438,2]
[330444090,1719415849582,-500.0,0.00016438,2]
[330444092,1719415849591,-503.40212646,0.00016438,2]
[330444095,1719415849602,-515.12296201,0.00016438,2]
[330444097,1719415849611,-500.0,0.00016438,2]
[330444099,1719415849620,-500.0,0.00016438,2]
[330444101,1719415849630,-504.24345647,0.00016438,2]
[330444103,1719415849639,-500.0,0.00016438,2]
[330444105,1719415849649,-500.0,0.00016438,2]
[330444107,1719415849658,-500.0,0.00016438,2]
[330444109,1719415849667,-500.0,0.00016438,2]
[330444111,1719415849679,-500.0,0.00016438,2]
[330444113,1719415849688,-500.0,0.00016438,2]
[330444115,1719415849697,-501.3271598,0.00016438,2]
[330444117,1719415849707,-500.0,0.00016438,2]
[330444119,1719415849715,-500.0,0.00016438,2]
[330444121,1719415849725,-500.0,0.00016438,2]
[330444123,1719415849736,-500.0,0.00016438,2]
[330444125,1719415849745,-532.47498228,0.00016438,2]
[330444126,1719415849755,-503.377296,0.00016438,2]
[330444129,1719415849764,-500.0,0.00016438,2]
[330444130,1719415849773,-756.45,0.00016438,2]
[330444132,1719415849782,-578.98951149,0.00016438,2]
[330444135,1719415849791,-500.0,0.00016438,2]
[330444136,1719415849801,-505.46897887,0.00016438,2]
[330444139,1719415849810,-500.0,0.00016438,2]
[330444140,1719415849819,-500.0,0.00016438,2]
[330444142,1719415849828,-500.0,0.00016438,2]
[330444144,1719415849838,-500.0,0.00016438,2]
[330444147,1719415849847,-500.52745422,0.00016438,2]
[330444149,1719415849856,-502.24067874,0.00016438,2]
[330444150,1719415849866,-500.0,0.00016438,2]
[330444153,1719415849875,-523.56885155,0.00016438,2]
[330444155,1719415849886,-612.015804,0.00016438,2]
[330444156,1719415849895,-319.58056846,0.00016438,2]
[330444158,1719415849906,-500.0,0.00016438,2]
[330444160,1719415849915,-500.0,0.00016438,2]
[330444162,1719415849926,-500.0,0.00016438,2]
[330444164,1719415849935,-500.0,0.00016438,2]
[330444166,1719415849944,-527.85,0.00016438,2]
[330444168,1719415849953,-502.42512537,0.00016438,2]
[330444170,1719415849963,-500.0,0.00016438,2]
[330444172,1719415849974,-500.0,0.00016438,2]
[330444175,1719415849987,-500.0,0.00016438,2]
[330444177,1719415849998,-500.0,0.00016438,2]
[330444179,1719415850008,-500.0,0.00016438,2]
[330444181,1719415850018,-502.5143709,0.00016438,2]
[330444183,1719415850027,-500.0,0.00016438,2]
[330444185,1719415850036,-500.0,0.00016438,2]
[330444186,1719415850046,-500.0,0.00016438,2]
[330444189,1719415850060,-500.0,0.00016438,2]
[330444190,1719415850070,-500.0,0.00016438,2]
[330444192,1719415850080,-500.0,0.00016438,2]
[330444195,1719415850092,-500.0,0.00016438,2]
[330444197,1719415850102,-500.0,0.00016438,2]
[330444198,1719415850112,-500.0,0.00016438,2]
[330444200,1719415850121,-865.38,0.00016438,2]
[330444202,1719415850131,-500.0,0.00016438,2]
[330444204,1719415850141,-500.0,0.00016438,2]
[330444206,1719415850150,-1000.0,0.00016438,2]
[330444209,1719415850161,-500.0,0.00016438,2]
[330444211,1719415850171,-500.0,0.00016438,2]
[330444213,1719415850181,-500.0,0.00016438,2]
[330444214,1719415850190,-504.14961211,0.00016438,2]
[330444217,1719415850199,-500.0,0.00016438,2]
[330444219,1719415850210,-6517.95,0.00016438,2]
[330444221,1719415850220,-500.0,0.00016438,2]
[330444222,1719415850231,-500.0,0.00016438,2]
[330444224,1719415850240,-508.25825295,0.00016438,2]
[330444226,1719415850249,-577.32163834,0.00016438,2]
[330444228,1719415850259,-500.0,0.00016438,2]
[330444230,1719415850268,-500.0,0.00016438,2]
[330444233,1719415850278,-500.0,0.00016438,2]
[330444235,1719415850288,-500.0,0.00016438,2]
[330444237,1719415850298,-500.0,0.00016438,2]
[330444239,1719415850308,-914.21,0.00016438,2]
[330444240,1719415850318,-500.0,0.00016438,2]
[330444242,1719415850327,-500.0,0.00016438,2]
[330444245,1719415850337,-500.0,0.00016438,2]
[330444247,1719415850346,-500.0,0.00016438,2]
[330444248,1719415850356,-500.0,0.00016438,2]
[330444250,1719415850366,-500.0,0.00016438,2]
[330444252,1719415850375,-500.0,0.00016438,2]
[330444254,1719415850384,-500.0,0.00016438,2]
[330444256,1719415850393,-500.0,0.00016438,2]